fUSD/lending_fUSD_20240330
["ID","MTS","AMOUNT","RATE_DAILY","PERIOD"]
[321032813,1711803079491,-500.0,0.00042546,4]
[321032814,1711803079500,-500.0,0.00042546,4]
[321032815,1711803079510,-500.0,0.00042546,4]
[321032816,1711803079519,-10000.0,0.00042546,2]
[321032817,1711803079529,-500.0,0.00042546,4]
[321032818,1711803079539,-500.0,0.00042546,4]
[321032819,1711803079548,-641.93,0.00042546,4]
[321032820,1711803079557,-500.0,0.00042546,4]
[321032821,1711803079567,-500.0,0.00042546,4]
[321032822,1711803079576,-1929.91,0.00042546,4]
[321032823,1711803079585,-500.0,0.00042546,4]
[321032824,1711803079596,-500.0,0.00042546,4]
[321032825,1711803079605,-500.0,0.00042546,4]
[321032826,1711803079615,-500.0,0.00042546,4]
[321032827,1711803079626,-500.0,0.00042546,4]
[321032828,1711803079635,-500.0,0.00042546,4]
[321032829,1711803079644,-500.0,0.00042546,4]
[321032830,1711803079653,-500.0,0.00042546,4]
[321032831,1711803079662,-500.0,0.00042546,4]
[321032832,1711803079672,-500.0,0.00042546,4]
[321032833,1711803079681,-2562.37,0.00042546,4]
[321032834,1711803079690,-500.0,0.00042546,4]
[321032835,1711803079700,-500.0,0.00042546,4]
[321032836,1711803079710,-500.0,0.00042546,4]
[321032837,1711803079719,-500.0,0.00042546,4]
[321032838,1711803079729,-500.0,0.00042546,4]
[321032839,1711803079740,-500.0,0.00042546,4]
[321032840,1711803079750,-500.0,0.00042546,4]
[321032841,1711803079759,-500.0,0.00042546,4]
[321032842,1711803079769,-500.0,0.00042546,4]
[321032843,1711803079778,-500.0,0.00042546,4]
[321032844,1711803079788,-500.0,0.00042546,4]
[321032845,1711803079797,-737.63,0.00042546,4]
[321032846,1711803079806,-500.0,0.00042546,4]
[321032847,1711803079816,-500.0,0.00042546,4]
[321032848,1711803079826,-500.0,0.00042546,4]
[321032849,1711803079835,-153.54935586,0.00042554,16]
[321032850,1711803079845,-152.0,0.00042567,7]
[321032851,1711803079855,-7264.81950173,0.0004257,2]
[321032852,1711803086679,165878.24598146,0.00025,2]
[321032853,1711803089264,169.3620795,0.00024999,2]
[321032854,1711803089773,956.57316488,0.00042237,120]
[321032855,1711803090338,2348.45796256,0.00024999,2]
[321032856,1711803120979,367.13359758,0.00042237,30]
[321032857,1711803124497,1299.16425052,0.000155,2]
[321032858,1711803203169,160.69,0.00038356,2]
[321032859,1711803208623,97783.77795073,0.0003,2]
[321032860,1711803224738,4482.78643791,0.00037,4]
[321032863,1711803240339,319003.30260075,0.00025,2]
[321032864,1711803240361,1207780.22646173,0.00025,2]
[321032865,1711803241795,7652.40609167,0.0003,2]
[321032866,1711803242133,47371.71516335,0.0002975,2]
[321032867,1711803272013,450.0,0.00042237,120]
[321032868,1711803274529,172.88565217,0.00042237,30]
[321032869,1711803274806,301.0036812,0.00022,2]
[321032870,1711803774435,1607.96876642,0.00025,30]
[321032871,1711803775914,3392.03123358,0.00029899,30]
[321032872,1711803803779,1000.0,0.00042218,120]
[321032873,1711803961981,34175.5,0.00042218,30]
[321032886,1711804232205,-156.52023788,0.0002965,2]
[321032887,1711804232214,-2348.45796256,0.00029749,2]
[321032888,1711804232223,-5145.57282782,0.0002975,2]
[321032889,1711804232263,-13019.91978624,0.0002975,2]
[321032890,1711804232272,-1000.0,0.00029798,2]
[321032891,1711804232281,-5456.33940948,0.00029798,2]
[321032892,1711804232290,-5709.4453828,0.00029799,2]
[321032893,1711804232299,-157.22,0.00029889,2]
[321032894,1711804232308,-500.0,0.00029898,2]
[321032895,1711804232318,-173.5832695,0.00029898,2]
[321032896,1711804232328,-255253.55745873,0.00029899,30]
[321032897,1711804232337,-72180.9373496,0.000299,2]
[321032898,1711804232347,-1504.8781263,0.0003,2]
[321032899,1711804232356,-762.35044664,0.0003,2]
[321032900,1711804232365,-373.93725254,0.0003,2]
[321032901,1711804232374,-346.14876236,0.0003,2]
[321032902,1711804232383,-9360.57330159,0.0003,2]
[321032903,1711804232393,-315.24300198,0.0003,2]
[321032904,1711804232402,-1696.60258348,0.0003,2]
[321032905,1711804232412,-156.52023772,0.00030309,2]
[321032906,1711804232421,-1828.26,0.00030309,2]
[321032907,1711804232430,-156.52023772,0.00030967,2]
[321032908,1711804232439,-156.52023772,0.00031626,2]
[321032909,1711804232449,-5709.44538273,0.00031634,2]
[321032910,1711804232459,-156.52023772,0.00032285,2]
[321032911,1711804232468,-156.52023772,0.00032943,2]
[321032912,1711804232483,-250.0,0.00033,3]
[321032913,1711804232492,-5709.44538273,0.00033469,2]
[321032914,1711804232502,-156.52023772,0.00033602,2]
[321032915,1711804232511,-687.75,0.00034005,2]
[321032916,1711804232521,-156.52023772,0.00034261,2]
[321032917,1711804232530,-150.72,0.00034424,2]
[321032918,1711804232541,-209.89,0.00034476,10]
[321032919,1711804232552,-156.52023772,0.00034919,2]
[321032920,1711804232563,-3289.95,0.00034931,2]
[321032921,1711804232575,-568.32,0.00034971,2]
[321032922,1711804232584,-454.92,0.00034989,2]
[321032923,1711804232595,-300.0,0.00035,3]
[321032924,1711804232604,-250.0,0.00035009,2]
[321032925,1711804232613,-2375.43,0.00035143,2]
[321032926,1711804232623,-200.0,0.00035166,2]
[321032927,1711804232633,-150.0,0.00035217,2]
[321032928,1711804232644,-341.32,0.00035246,2]
[321032929,1711804232655,-5709.44538273,0.00035304,2]
[321032930,1711804232666,-341.32,0.00035343,2]
[321032931,1711804232680,-341.32,0.0003544,2]
[321032932,1711804232691,-341.32,0.00035536,2]
[321032933,1711804232704,-156.52023772,0.00035578,2]
[321032934,1711804232715,-341.32,0.00035633,2]
[321032935,1711804232726,-341.32,0.0003573,2]
[321032936,1711804232736,-341.32,0.00035826,2]
[321032937,1711804232746,-341.32,0.00035923,2]
[321032938,1711804232962,-200.0,0.00035923,2]
[321032939,1711804232973,-200.0,0.00035923,2]
[321032940,1711804232984,-162.0,0.00035923,2]
[321032941,1711804232994,-341.32,0.0003602,2]
[321032942,1711804233004,-341.32,0.00036116,2]
[321032943,1711804233014,-341.32,0.00036213,2]
[321032944,1711804233023,-156.52023772,0.00036237,2]
[321032945,1711804233033,-687.75,0.00036269,2]
[321032946,1711804233043,-341.32,0.0003631,2]
[321032947,1711804233053,-341.32,0.00036406,2]
[321032948,1711804233062,-341.32,0.00036503,2]
[321032949,1711804233072,-341.32,0.000366,2]
[321032950,1711804233082,-341.32,0.00036696,2]
[321032951,1711804233091,-341.32,0.00036793,2]
[321032952,1711804233102,-341.32,0.0003689,2]
[321032953,1711804233111,-156.52023772,0.00036895,2]
[321032954,1711804233121,-150.72,0.0003692,2]
[321032955,1711804233132,-341.32,0.00036986,2]
[321032956,1711804233143,-350.0,0.00037,3]
[321032957,1711804233152,-341.32,0.00037083,2]
[321032958,1711804233163,-5709.44538273,0.00037139,2]
[321032959,1711804233174,-156.52023772,0.00037554,2]
[321032960,1711804233183,-209.89,0.00037855,10]
[321032961,1711804233193,-2375.43,0.00037883,2]
[321032962,1711804233203,-180.0,0.00037886,2]
[321032963,1711804233214,-746.87494109,0.00037927,2]
[321032964,1711804233224,-162.97,0.00038027,15]
[321032965,1711804233235,-156.52023772,0.00038213,2]
[321032966,1711804233245,-250.0,0.00038277,2]
[321032967,1711804233255,-168.64,0.00038311,2]
[321032968,1711804233264,-687.75,0.00038533,2]
[321032969,1711804233274,-23900.0,0.00038543,2]
[321032970,1711804233284,-10998.09,0.00038839,2]
[321032971,1711804233294,-156.52023772,0.00038871,2]
[321032972,1711804233305,-5709.44538273,0.00038974,2]
[321032973,1711804233316,-400.0,0.00039,3]
[321032974,1711804233326,-1279.5620117,0.00039252,4]
[321032975,1711804233338,-499.99,0.00039255,2]
[321032976,1711804233349,-1378.04,0.00039255,2]
[321032977,1711804233360,-1000.0,0.00039413,2]
[321032978,1711804233370,-150.72,0.00039416,2]
[321032979,1711804233380,-156.52023772,0.0003953,2]
[321032980,1711804233390,-168.67,0.00039635,2]
[321032981,1711804233402,-178.53,0.00039697,2]
[321032982,1711804233412,-1194.45,0.00039718,2]
[321032983,1711804233422,-746.874941,0.00039968,2]
[321032984,1711804233431,-9000.0,0.0003999,2]
[321032985,1711804233441,-1000.0,0.0004,20]
[321032986,1711804233452,-337.57629848,0.0004,7]
[321032987,1711804233462,-11145.0,0.00040137,2]
[321032988,1711804233474,-156.52023772,0.00040189,2]
[321032989,1711804233487,-179.15,0.00040465,120]
[321032990,1711804233498,-2375.43,0.00040623,2]
[321032991,1711804233508,-687.75,0.00040797,2]
[321032992,1711804233518,-374.86,0.00040799,2]
[321032993,1711804233530,-600.0,0.000408,14]
[321032994,1711804233542,-5709.44538273,0.00040809,2]
[321032995,1711804233552,-156.52023772,0.00040847,2]
[321032996,1711804233564,-500.0,0.000409,14]
[321032997,1711804233574,-1200.0,0.000409,14]
[321032998,1711804233585,-450.0,0.00041,3]
[321032999,1711804233595,-128874.04099088,0.00041,3]
[321033000,1711804233995,-829.53450096,0.00041,3]
[321033001,1711804234008,-308.68743525,0.00041,3]
[321033002,1711804234043,-944.29932622,0.00041,3]
[321033021,1711804238564,-1790.70369207,0.00041,3]
[321033022,1711804238576,-661.35,0.00041,3]
[321033023,1711804238621,-35668.14148128,0.00041,3]
[321033024,1711804238732,-455114.08257334,0.00041,3]
[321033025,1711804238743,-500.0,0.00041095,4]
[321033026,1711804238752,-500.0,0.00041095,4]
[321033027,1711804238762,-655.66,0.00041095,4]
[321033028,1711804238772,-18842.99,0.00041095,4]
[321033029,1711804238781,-2008.34,0.00041095,4]
[321033030,1711804238794,-1120.93,0.00041095,4]
[321033031,1711804238803,-500.0,0.00041095,4]
[321033032,1711804238813,-500.0,0.00041095,4]
[321033033,1711804238822,-820.52,0.00041095,4]
[321033034,1711804238833,-687.43,0.00041095,4]
[321033035,1711804238844,-719.39,0.00041095,4]
[321033036,1711804238854,-606.87,0.00041095,4]
[321033037,1711804238864,-1193.2,0.00041095,4]
[321033038,1711804238873,-1022.97,0.00041095,4]
[321033039,1711804238883,-500.0,0.00041095,4]
[321033040,1711804238893,-500.0,0.00041095,4]
[321033041,1711804238903,-1550.13,0.00041095,4]
[321033042,1711804238913,-2887.22,0.00041095,4]
[321033043,1711804238923,-1755.83,0.00041095,4]
[321033044,1711804238933,-1090.33,0.00041095,4]
[321033045,1711804238944,-905.03,0.00041095,4]
[321033046,1711804238955,-3453.32,0.00041095,4]
[321033047,1711804238964,-690.32,0.00041095,4]
[321033048,1711804238974,-690.32,0.00041095,4]
[321033049,1711804238983,-1804.6,0.00041095,4]
[321033050,1711804238992,-4530.01,0.00041095,4]
[321033051,1711804239002,-855.3,0.00041095,4]
[321033052,1711804239012,-517.76,0.00041095,4]
[321033053,1711804239021,-1752.0,0.00041095,4]
[321033054,1711804239030,-1320.09,0.00041095,4]
[321033055,1711804239039,-2736.37,0.00041095,4]
[321033056,1711804239331,-903.7,0.00041095,4]
[321033057,1711804239341,-1088.31,0.00041095,4]
[321033058,1711804239350,-500.0,0.00041095,4]
[321033059,1711804239359,-956.54,0.00041095,4]
[321033060,1711804239368,-840.39,0.00041095,4]
[321033061,1711804239377,-500.0,0.00041095,4]
[321033062,1711804239386,-562.44,0.00041095,4]
[321033063,1711804239395,-599.24,0.00041095,4]
[321033064,1711804239405,-538.35,0.00041095,4]
[321033065,1711804239414,-500.0,0.00041095,4]
[321033066,1711804239422,-500.0,0.00041095,4]
[321033067,1711804239433,-500.0,0.00041095,4]
[321033068,1711804239444,-2201.05,0.00041095,4]
[321033069,1711804239455,-632.62,0.00041095,4]
[321033070,1711804239464,-500.0,0.00041095,4]
[321033071,1711804239473,-4316.49,0.00041095,4]
[321033072,1711804239486,-500.0,0.00041095,4]
[321033073,1711804239496,-500.0,0.00041095,2]
[321033074,1711804239506,-779.49,0.00041095,4]
[321033075,1711804239517,-556.67,0.00041095,4]
[321033076,1711804239529,-500.0,0.00041095,4]
[321033077,1711804239538,-180.0,0.00041096,2]
[321033078,1711804239549,-1000.0,0.00041096,15]
[321033079,1711804239561,-1500.0,0.00041096,45]
[321033080,1711804239571,-3000.0,0.000411,2]
[321033081,1711804239580,-297.86106422,0.00041132,17]
[321033082,1711804239590,-181.72170887,0.0004116,2]
[321033083,1711804239599,-215.75495381,0.00041218,13]
[321033084,1711804239608,-414.85707433,0.00041232,2]
[321033085,1711804239617,-153.54976608,0.00041269,11]
[321033086,1711804239626,-177.63730155,0.00041321,2]
[321033087,1711804239635,-374.86,0.00041322,2]
[321033088,1711804239644,-374.86,0.00041322,2]
[321033089,1711804239653,-5515.59583075,0.00041329,2]
[321033090,1711804239663,-812.06,0.00041331,4]
[321033091,1711804239671,-3597.78,0.00041331,4]
[321033092,1711804239681,-2756.45,0.00041331,4]
[321033093,1711804239690,-500.0,0.00041331,4]
[321033094,1711804239699,-1063.58,0.00041331,4]
[321033095,1711804239709,-696.48,0.00041331,4]
[321033096,1711804239718,-2451.59,0.00041331,4]
[321033097,1711804239727,-2461.1,0.00041331,4]
[321033098,1711804239737,-500.0,0.00041331,4]
[321033099,1711804239746,-500.0,0.00041331,4]
[321033100,1711804239756,-690.32,0.00041331,4]
[321033101,1711804239765,-179.52111261,0.00041331,4]
[321033102,1711804239774,-669.02,0.00041331,4]
[321033103,1711804239785,-4136.85,0.00041331,4]
[321033104,1711804239794,-525.54584346,0.00041332,4]
[321033105,1711804239803,-500.0,0.00041332,4]
[321033106,1711804239813,-521.46223411,0.00041332,4]
[321033107,1711804239823,-500.0,0.00041332,4]
[321033108,1711804239833,-500.0,0.00041332,4]
[321033109,1711804239842,-500.0,0.00041332,4]
[321033110,1711804239851,-226.42574572,0.00041332,4]
[321033111,1711804239861,-500.0,0.00041332,4]
[321033112,1711804239871,-500.0,0.00041332,4]
[321033113,1711804239881,-529.52001583,0.00041332,4]
[321033114,1711804239890,-500.0,0.00041332,4]
[321033115,1711804239900,-500.0,0.00041332,4]
[321033116,1711804239910,-500.0,0.00041332,4]
[321033117,1711804239920,-500.0,0.00041332,4]
[321033118,1711804239929,-500.0,0.00041332,4]
[321033119,1711804239939,-500.0,0.00041332,4]
[321033120,1711804239949,-500.0,0.00041332,4]
[321033121,1711804239959,-500.0,0.00041332,4]
[321033122,1711804239968,-500.0,0.00041332,4]
[321033123,1711804239978,-500.0,0.00041332,4]
[321033125,1711804239989,-500.0,0.00041332,4]
[321033127,1711804240000,-505.54528464,0.00041332,4]
[321033129,1711804240009,-500.0,0.00041332,4]
[321033131,1711804240018,-500.0,0.00041332,4]
[321033133,1711804240028,-500.0,0.00041332,4]
[321033135,1711804240038,-500.0,0.00041332,4]
[321033137,1711804240048,-500.0,0.00041332,4]
[321033140,1711804240057,-500.0,0.00041332,2]
[321033144,1711804240079,-500.0,0.00041332,4]
[321033146,1711804240090,-507.90661187,0.00041332,4]
[321033148,1711804240100,-500.0,0.00041332,4]
[321033150,1711804240110,-500.0,0.00041332,4]
[321033152,1711804240120,-500.0,0.00041332,4]
[321033155,1711804240129,-500.0,0.00041332,4]
[321033157,1711804240139,-500.0,0.00041332,4]
[321033159,1711804240150,-500.0,0.00041332,4]
[321033161,1711804240159,-500.0,0.00041332,4]
[321033163,1711804240168,-477.01526681,0.00041332,4]
[321033164,1711804240177,-524.28052372,0.00041332,4]
[321033166,1711804240187,-500.0,0.00041332,4]
[321033168,1711804240197,-600.11319339,0.00041332,4]
[321033170,1711804240207,-500.0,0.00041332,4]
[321033171,1711804240216,-500.0,0.00041332,4]
[321033172,1711804240226,-500.0,0.00041332,4]
[321033174,1711804240235,-586.06809415,0.00041332,4]
[321033176,1711804240245,-500.0,0.00041332,4]
[321033178,1711804240255,-500.0,0.00041332,4]
[321033180,1711804240265,-473.69943024,0.00041332,4]
[321033182,1711804240274,-508.97,0.00041332,4]
[321033184,1711804240283,-500.0,0.00041332,4]
[321033186,1711804240293,-500.0,0.00041332,4]
[321033188,1711804240303,-500.0,0.00041332,4]
[321033191,1711804240314,-500.0,0.00041332,4]
[321033193,1711804240324,-469.61491463,0.00041332,4]
[321033195,1711804240334,-500.0,0.00041332,4]
[321033197,1711804240345,-500.0,0.00041332,4]
[321033199,1711804240354,-500.0,0.00041332,4]
[321033201,1711804240365,-500.0,0.00041332,4]
[321033203,1711804240375,-500.0,0.00041332,4]
[321033205,1711804240385,-644.49,0.00041332,4]
[321033207,1711804240396,-500.0,0.00041332,4]
[321033209,1711804240406,-514.4244459,0.00041332,4]
[321033211,1711804240415,-500.0,0.00041332,4]
[321033213,1711804240425,-500.0,0.00041332,4]
[321033215,1711804240435,-500.0,0.00041332,4]
[321033217,1711804240444,-500.0,0.00041332,4]
[321033219,1711804240454,-500.0,0.00041332,4]
[321033221,1711804240463,-500.0,0.00041332,4]
[321033223,1711804240473,-500.0,0.00041332,4]
[321033225,1711804240484,-500.0,0.00041332,4]
[321033228,1711804240496,-500.0,0.00041332,4]
[321033230,1711804240505,-519.58,0.00041332,4]
[321033232,1711804240515,-500.0,0.00041332,4]
[321033234,1711804240525,-500.0,0.00041332,4]
[321033235,1711804240534,-500.0,0.00041332,4]
[321033238,1711804240544,-500.0,0.00041332,4]
[321033239,1711804240554,-500.0,0.00041332,4]
[321033241,1711804240565,-500.0,0.00041332,4]
[321033242,1711804240574,-500.0,0.00041332,4]
[321033244,1711804240584,-500.0,0.00041332,4]
[321033246,1711804240593,-500.0,0.00041332,4]
[321033248,1711804240603,-500.0,0.00041332,4]
[321033250,1711804240613,-500.0,0.00041332,4]
[321033252,1711804240623,-500.0,0.00041332,4]
[321033254,1711804240633,-500.0,0.00041332,4]
[321033256,1711804240642,-500.0,0.00041332,4]
[321033258,1711804240652,-500.0,0.00041332,4]
[321033260,1711804240662,-500.0,0.00041332,4]
[321033261,1711804240671,-520.51612845,0.00041332,4]
[321033262,1711804240681,-500.0,0.00041332,4]
[321033263,1711804240691,-500.0,0.00041332,4]
[321033264,1711804240701,-1000.0,0.00041332,30]
[321033265,1711804240710,-500.0,0.00041332,4]
[321033266,1711804240720,-500.0,0.00041332,4]
[321033267,1711804240731,-500.0,0.00041332,4]
[321033268,1711804240740,-642.7,0.00041332,4]
[321033269,1711804240751,-500.0,0.00041332,4]
[321033270,1711804240760,-500.0,0.00041332,4]
[321033271,1711804240773,-500.0,0.00041332,4]
[321033272,1711804240783,-500.0,0.00041332,4]
[321033273,1711804240793,-500.0,0.00041332,4]
[321033274,1711804240803,-696.79,0.00041332,4]
[321033275,1711804240813,-535.75570167,0.00041332,4]
[321033276,1711804240823,-500.0,0.00041332,4]
[321033277,1711804240833,-500.0,0.00041332,4]
[321033278,1711804240842,-500.0,0.00041332,4]
[321033279,1711804240852,-500.0,0.00041332,4]
[321033280,1711804240862,-500.0,0.00041332,4]
[321033281,1711804240872,-500.0,0.00041332,4]
[321033282,1711804240882,-500.0,0.00041332,4]
[321033283,1711804240892,-500.0,0.00041332,4]
[321033284,1711804240903,-500.0,0.00041332,4]
[321033285,1711804240914,-500.0,0.00041332,4]
[321033286,1711804240923,-500.0,0.00041332,4]
[321033287,1711804240933,-500.0,0.00041332,4]
[321033288,1711804240942,-585.9711604,0.00041332,4]
[321033289,1711804240952,-150.0,0.00041332,4]
[321033290,1711804240962,-500.0,0.00041332,2]
[321033291,1711804240972,-500.0,0.00041332,4]
[321033292,1711804240982,-500.0,0.00041332,4]
[321033293,1711804240991,-500.0,0.00041332,4]
[321033294,1711804241001,-500.0,0.00041332,4]
[321033295,1711804241010,-500.0,0.00041332,4]
[321033296,1711804241020,-500.0,0.00041332,4]
[321033297,1711804241031,-524.62532793,0.00041332,4]
[321033298,1711804241041,-500.0,0.00041332,4]
[321033299,1711804241051,-500.0,0.00041332,4]
[321033300,1711804241060,-500.0,0.00041332,4]
[321033301,1711804241069,-500.0,0.00041332,4]
[321033302,1711804241079,-500.0,0.00041332,4]
[321033303,1711804241088,-500.0,0.00041332,4]
[321033304,1711804241098,-529.6070281,0.00041332,4]
[321033305,1711804241108,-500.0,0.00041332,4]
[321033306,1711804241118,-500.0,0.00041332,4]
[321033307,1711804241129,-529.19,0.00041332,4]
[321033308,1711804241138,-500.0,0.00041332,4]
[321033309,1711804241148,-500.0,0.00041332,4]
[321033310,1711804241158,-500.0,0.00041332,4]
[321033311,1711804241168,-500.0,0.00041332,4]
[321033312,1711804241177,-500.0,0.00041332,4]
[321033313,1711804241187,-500.0,0.00041332,4]
[321033314,1711804241197,-500.0,0.00041332,4]
[321033315,1711804241207,-571.44,0.00041332,4]
[321033316,1711804241217,-500.0,0.00041332,4]
[321033317,1711804241227,-500.0,0.00041332,4]
[321033318,1711804241237,-517.66706466,0.00041332,4]
[321033319,1711804241247,-525.35665316,0.00041332,4]
[321033320,1711804241256,-500.0,0.00041332,4]
[321033321,1711804241266,-500.0,0.00041332,4]
[321033322,1711804241275,-510.17005473,0.00041332,4]
[321033323,1711804241285,-500.0,0.00041332,4]
[321033324,1711804241294,-500.0,0.00041332,4]
[321033325,1711804241304,-500.0,0.00041332,4]
[321033326,1711804241317,-500.0,0.00041332,4]
[321033327,1711804241328,-500.0,0.00041332,4]
[321033328,1711804241337,-500.0,0.00041332,4]
[321033329,1711804241347,-500.0,0.00041332,4]
[321033330,1711804241357,-500.0,0.00041332,4]
[321033331,1711804241367,-500.0,0.00041332,4]
[321033332,1711804241376,-500.0,0.00041332,4]
[321033333,1711804241385,-500.0,0.00041332,4]
[321033334,1711804241395,-500.0,0.00041332,4]
[321033335,1711804241405,-500.0,0.00041332,4]
[321033336,1711804241415,-500.0,0.00041332,4]
[321033337,1711804241424,-500.0,0.00041332,4]
[321033338,1711804241433,-500.0,0.00041332,4]
[321033339,1711804241443,-500.0,0.00041332,4]
[321033340,1711804241453,-500.0,0.00041332,4]
[321033341,1711804241462,-500.0,0.00041332,4]
[321033342,1711804241472,-500.0,0.00041332,4]
[321033343,1711804241487,-500.0,0.00041332,4]
[321033344,1711804241497,-500.0,0.00041332,4]
[321033345,1711804241507,-500.0,0.00041332,4]
[321033346,1711804241516,-500.0,0.00041332,4]
[321033347,1711804241527,-500.0,0.00041332,4]
[321033348,1711804241536,-500.0,0.00041332,4]
[321033349,1711804241546,-500.0,0.00041332,4]
[321033350,1711804241558,-500.0,0.00041332,4]
[321033351,1711804241570,-521.96441603,0.00041332,4]
[321033352,1711804241579,-500.0,0.00041332,4]
[321033353,1711804241589,-500.0,0.00041332,4]
[321033354,1711804241599,-500.0,0.00041332,4]
[321033355,1711804241608,-500.0,0.00041332,4]
[321033356,1711804241619,-500.0,0.00041332,2]
[321033357,1711804241629,-507.41000175,0.00041332,4]
[321033358,1711804241638,-500.0,0.00041332,4]
[321033359,1711804241648,-500.0,0.00041332,4]
[321033360,1711804241657,-565.12,0.00041332,4]
[321033361,1711804241667,-532.71769591,0.00041332,4]
[321033362,1711804241676,-500.0,0.00041332,4]
[321033363,1711804241688,-500.0,0.00041332,4]
[321033364,1711804241698,-327.78753065,0.00041332,4]
[321033365,1711804241708,-500.0,0.00041332,4]
[321033366,1711804241718,-500.0,0.00041332,4]
[321033367,1711804241727,-500.0,0.00041332,4]
[321033368,1711804241737,-500.0,0.00041332,4]
[321033369,1711804241748,-532.8760503,0.00041332,4]
[321033370,1711804241757,-500.0,0.00041332,4]
[321033371,1711804241767,-534.40511797,0.00041332,4]
[321033372,1711804241777,-500.0,0.00041332,4]
[321033373,1711804241786,-500.0,0.00041332,4]
[321033374,1711804241796,-500.0,0.00041332,4]
[321033375,1711804241806,-500.0,0.00041332,4]
[321033376,1711804241816,-500.0,0.00041332,4]
[321033377,1711804241827,-500.0,0.00041332,4]
[321033378,1711804241837,-500.0,0.00041332,4]
[321033379,1711804241847,-500.0,0.00041332,4]
[321033380,1711804241860,-500.0,0.00041332,4]
[321033381,1711804241871,-760.18,0.00041332,4]
[321033382,1711804241881,-500.0,0.00041332,4]
[321033383,1711804241891,-500.0,0.00041332,4]
[321033384,1711804241902,-500.0,0.00041332,4]
[321033385,1711804241912,-500.0,0.00041332,4]
[321033386,1711804241922,-500.0,0.00041332,4]
[321033387,1711804241932,-500.0,0.00041332,4]
[321033388,1711804241941,-500.0,0.00041332,4]
[321033389,1711804241951,-498.60935828,0.00041332,4]
[321033390,1711804241961,-500.0,0.00041332,4]
[321033391,1711804241970,-500.0,0.00041332,4]
[321033392,1711804241980,-714.75,0.00041332,4]
[321033393,1711804241990,-500.0,0.00041332,4]
[321033394,1711804242000,-532.31282905,0.00041332,4]
[321033395,1711804242010,-533.04244363,0.00041332,4]
[321033396,1711804242020,-500.0,0.00041332,4]
[321033397,1711804242029,-500.0,0.00041332,4]
[321033398,1711804242039,-500.0,0.00041332,4]
[321033399,1711804242048,-500.0,0.00041332,4]
[321033400,1711804242057,-500.0,0.00041332,4]
[321033401,1711804242066,-500.0,0.00041332,4]
[321033402,1711804242075,-500.0,0.00041332,4]
[321033403,1711804242085,-500.0,0.00041332,4]
[321033404,1711804242095,-500.0,0.00041332,4]
[321033405,1711804242106,-500.0,0.00041332,4]
[321033406,1711804242116,-500.0,0.00041332,4]
[321033407,1711804242125,-500.0,0.00041332,4]
[321033408,1711804242136,-234.2,0.00041332,4]
[321033409,1711804242145,-500.0,0.00041332,4]
[321033410,1711804242156,-500.0,0.00041332,4]
[321033411,1711804242165,-500.0,0.00041332,4]
[321033412,1711804242176,-500.0,0.00041332,4]
[321033413,1711804242186,-541.82619708,0.00041332,4]